[Event "European Womens-ch 2025"]
[Site "Rhodes"]
[Date "2025.04.11"]
[Round "11.16"]
[White "Socko, Monika"]
[Black "Ter-Avetisjana, Agnesa Stepania"]
[Result "1/2-1/2"]
[Annotator "ChessBase"]
[ECO "B13"]
[WhiteElo "2369"]
[BlackElo "2100"]
[PlyCount "227"]
[EventDate "2025.03.29"]
[EventType "swiss"]
[EventCountry "GRE"]
[SourceTitle "playchess.com"]
[Source "ChessBase"]
[SourceQuality "1"]
[TimeControl "40/5400+30:1800+30"]

1. e4 {[%emt 0:00:10]} c6 {[%emt 0:00:25]} 2. d4 {[%emt 0:00:02]} d5 {[%emt 0:00:06]} 3. exd5 {[%emt 0:00:05]} cxd5 {[%emt 0:00:04]} 4. Bd3 {[%emt 0:00:14]} Nc6 {[%emt 0:00:05]} 5. c3 {[%emt 0:00:05]} Qc7 {[%emt 0:00:05]} 6. h3 {[%emt 0:00:51]} g6 {[%emt 0:00:38]} 7. Nf3 {[%emt 0:00:51]} Bf5 {[%emt 0:00:29]} 8. Bxf5 {[%emt 0:01:43]} gxf5 {[%emt 0:00:07]} 9. Qe2 {[%emt 0:01:42]} e6 {[%emt 0:01:27]} 10. O-O {[%emt 0:01:04]} Bg7 {[%emt 0:01:33]} 11. c4 {[%emt 0:03:08]} Nge7 {[%emt 0:04:55]} 12. Nc3 {[%emt 0:01:32]} Rd8 {[%emt 0:13:16]} 13. Bg5 {[%emt 0:12:20]} Rd7 {[%emt 0:01:27]} 14. Nb5 {[%emt 0:09:37]} Qb8 {[%emt 0:03:03]} 15. c5 {[%emt 0:00:07]} O-O {[%emt 0:04:09]} 16. Qd2 {[%emt 0:02:10]} Ng6 {[%emt 0:08:29]} 17. Nd6 {[%emt 0:02:53]} f6 {[%emt 0:10:45]} 18. Bf4 {[%emt 0:07:30]} e5 {[%emt 0:05:58]} 19. Bh2 {[%emt 0:08:21]} Nce7 {[%emt 0:02:19]} 20. Rfe1 {[%emt 0:04:34]} f4 {[%emt 0:04:14]} 21. Kh1 {[%emt 0:03:03]} e4 {[%emt 0:08:08]} 22. Ng1 {[%emt 0:00:11]} Bh6 {[%emt 0:00:25]} 23. Ne2 {[%emt 0:02:47]} Rxd6 {[%emt 0:05:27]} 24. cxd6 {[%emt 0:00:05]} Qxd6 {[%emt 0:00:06]} 25. h4 {[%emt 0:01:47]} Qd7 {[%emt 0:04:23]} 26. Nxf4 {[%emt 0:05:50]} Qg4 {[%emt 0:03:18]} 27. Qe2 {[%emt 0:00:43]} Qxh4 {[%emt 0:02:23]} 28. Qh5 {[%emt 0:01:46]} Qxh5 {[%emt 0:05:22]} 29. Nxh5 {[%emt 0:00:04]} Kf7 {[%emt 0:04:18]} 30. f3 {[%emt 0:01:40]} exf3 {[%emt 0:01:03]} 31. gxf3 {[%emt 0:00:32]} Rc8 {[%emt 0:00:29]} 32. Re2 {[%emt 0:00:46]} Nf5 {[%emt 0:00:35]} 33. Rd1 {[%emt 0:02:52]} Rc4 {[%emt 0:02:00]} 34. f4 {[%emt 0:02:02]} Nxd4 {[%emt 0:03:10]} 35. Red2 {[%emt 0:03:30]} Nf5 {[%emt 0:02:46]} 36. Rxd5 {[%emt 0:00:05]} Nge7 {[%emt 0:00:13]} 37. Rd7 {[%emt 0:00:55]} Rb4 {[%emt 0:00:39]} 38. Ng3 {[%emt 0:02:07]} Ne3 {[%emt 0:00:38]} 39. Re1 {[%emt 0:07:14]} Bxf4 {[%emt 0:00:09]} 40. Bg1 {[%emt 0:00:00]} Bxg3 {[%emt 0:00:00]} 41. Rxe3 {[%emt 0:09:10]} Be5 {[%emt 0:01:05]} 42. Rxe7+ {[%emt 0:04:19]} Kxe7 {[%emt 0:00:12]} 43. Rxe5+ {[%emt 0:00:03]} fxe5 {[%emt 0:02:47]} 44. Bc5+ {[%emt 0:00:03]} Ke6 {[%emt 0:00:05]} 45. Bxb4 {[%emt 0:00:04]} Kd5 {[%emt 0:00:06]} 46. Kg2 {[%emt 0:06:10]} Kc4 {[%emt 0:03:41]} 47. Bd6 {[%emt 0:05:22]} e4 {[%emt 0:00:23]} 48. Kg3 {[%emt 0:01:29]} a5 {[%emt 0:05:03]} 49. Bc7 {[%emt 0:04:46]} a4 {[%emt 0:00:32]} 50. a3 {[%emt 0:00:53]} Kd3 {[%emt 0:01:35]} 51. Kf2 {[%emt 0:05:43]} e3+ {[%emt 0:00:51]} 52. Ke1 {[%emt 0:02:36]} h5 {[%emt 0:01:46]} 53. Bd8 {[%emt 0:00:54]} b5 {[%emt 0:02:54]} 54. Bf6 {[%emt 0:00:26]} e2 {[%emt 0:00:52]} 55. Bg5 {[%emt 0:01:50]} Kc2 {[%emt 0:01:15]} 56. Kxe2 {[%emt 0:00:49]} Kxb2 {[%emt 0:00:06]} 57. Be7 {[%emt 0:00:03]} Kc3 {[%emt 0:00:35]} 58. Bb4+ {[%emt 0:00:45]} Kc4 {[%emt 0:00:21]} 59. Kf3 {[%emt 0:00:09]} Kd5 {[%emt 0:00:10]} 60. Kf4 {[%emt 0:00:02]} Kc6 {[%emt 0:00:32]} 61. Kg5 {[%emt 0:00:16]} Kb6 {[%emt 0:00:14]} 62. Kxh5 {[%emt 0:00:04]} Kc6 {[%emt 0:00:05]} 63. Kg5 {[%emt 0:00:03]} Kb6 {[%emt 0:00:05]} 64. Kf5 {[%emt 0:00:03]} Kc6 {[%emt 0:00:05]} 65. Ke6 {[%emt 0:00:05]} Kc7 {[%emt 0:00:40]} 66. Kd5 {[%emt 0:00:10]} Kd7 {[%emt 0:00:36]} 67. Bd6 {[%emt 0:00:51]} Kd8 {[%emt 0:00:19]} 68. Kc6 {[%emt 0:00:32]} Ke8 {[%emt 0:00:09]} 69. Bc5 {[%emt 0:03:58]} Kd8 {[%emt 0:01:35]} 70. Bf2 {[%emt 0:00:30]} Ke7 {[%emt 0:00:44]} 71. Bh4+ {[%emt 0:00:18]} Ke6 {[%emt 0:00:27]} 72. Bg3 {[%emt 0:00:04]} Ke7 {[%emt 0:01:08]} 73. Bf4 {[%emt 0:00:03]} Ke6 {[%emt 0:00:33]} 74. Bd6 {[%emt 0:00:05]} Kf5 {[%emt 0:09:39]} 75. Kxb5 {[%emt 0:00:19]} Ke6 {[%emt 0:00:25]} 76. Kc6 {[%emt 0:00:03]} Kf7 {[%emt 0:00:32]} 77. Bg3 {[%emt 0:00:37]} Ke7 {[%emt 0:00:46]} 78. Bc7 {[%emt 0:00:31]} Ke8 {[%emt 0:00:45]} 79. Kd6 {[%emt 0:00:23]} Kf7 {[%emt 0:00:53]} 80. Bd8 {[%emt 0:00:03]} Ke8 {[%emt 0:00:21]} 81. Be7 {[%emt 0:00:10]} Kf7 {[%emt 0:00:02]} 82. Kd7 {[%emt 0:00:05]} Kg8 {[%emt 0:00:16]} 83. Ke6 {[%emt 0:00:17]} Kg7 {[%emt 0:00:08]} 84. Bc5 {[%emt 0:01:32]} Kg8 {[%emt 0:00:40]} 85. Kf6 {[%emt 0:00:37]} Kh8 {[%emt 0:00:22]} 86. Kg6 {[%emt 0:01:15]} Kg8 {[%emt 0:00:04]} 87. Bd6 {[%emt 0:00:36]} Kh8 {[%emt 0:00:05]} 88. Kf7 {[%emt 0:01:05]} Kh7 {[%emt 0:00:01]} 89. Be5 {[%emt 0:02:19]} Kh6 {[%emt 0:00:01]} 90. Kg8 {[%emt 0:00:20]} Kg6 {[%emt 0:00:33]} 91. Bg7 {[%emt 0:00:07]} Kh5 {[%emt 0:00:34]} 92. Kf7 {[%emt 0:00:03]} Kg5 {[%emt 0:00:04]} 93. Bf8 {[%emt 0:00:17]} Kf5 {[%emt 0:01:02]} 94. Bd6 {[%emt 0:00:13]} Kg5 {[%emt 0:00:12]} 95. Be7+ {[%emt 0:00:03]} Kh6 {[%emt 0:00:30]} 96. Ke6 {[%emt 0:00:35]} Kg6 {[%emt 0:00:30]} 97. Bh4 {[%emt 0:00:07]} Kg7 {[%emt 0:00:14]} 98. Ke7 {[%emt 0:00:20]} Kg8 {[%emt 0:01:01]} 99. Bf6 {[%emt 0:00:41]} Kh7 {[%emt 0:00:02]} 100. Kf7 {[%emt 0:00:07]} Kh6 {[%emt 0:00:01]} 101. Bd8 {[%emt 0:00:05]} Kh7 {[%emt 0:00:25]} 102. Bf6 {[%emt 0:00:28]} Kh6 {[%emt 0:00:02]} 103. Kg8 {[%emt 0:00:04]} Kg6 {[%emt 0:00:11]} 104. Bg7 {[%emt 0:00:03]} Kh5 {[%emt 0:00:07]} 105. Kf7 {[%emt 0:00:05]} Kg5 {[%emt 0:00:04]} 106. Bf8 {[%emt 0:00:11]} Kf5 {[%emt 0:00:31]} 107. Be7 {[%emt 0:00:06]} Ke5 {[%emt 0:00:09]} 108. Bh4 {[%emt 0:00:08]} Kd6 {[%emt 0:00:46]} 109. Bg3+ {[%emt 0:00:07]} Kc6 {[%emt 0:00:04]} 110. Ke6 {[%emt 0:00:04]} Kb7 {[%emt 0:00:09]} 111. Kd7 {[%emt 0:00:04]} Ka8 {[%emt 0:00:09]} 112. Kc7 {[%emt 0:00:18]} Ka7 {[%emt 0:00:04]} 113. Kc6 {[%emt 0:00:03]} Ka8 {[%emt 0:00:11]} 114. Kb6 {[%emt 0:13:23]} 1/2-1/2

[Event "European Womens-ch 2025"]
[Site "Rhodes"]
[Date "2025.04.11"]
[Round "11.17"]
[White "Roebers, Eline"]
[Black "Avramidou, Anastasia"]
[Result "1/2-1/2"]
[Annotator "ChessBase"]
[ECO "C70"]
[WhiteElo "2367"]
[BlackElo "2275"]
[PlyCount "77"]
[EventDate "2025.03.29"]
[EventType "swiss"]
[EventCountry "GRE"]
[SourceTitle "playchess.com"]
[Source "ChessBase"]
[SourceQuality "1"]
[TimeControl "40/5400+30:1800+30"]

1. e4 {[%emt 0:04:02]} e5 {[%emt 0:00:05]} 2. Nf3 {[%emt 0:00:04]} Nc6 {[%emt 0:00:07]} 3. Bb5 {[%emt 0:00:03]} a6 {[%emt 0:00:20]} 4. Ba4 {[%emt 0:00:04]} Nge7 {[%emt 0:00:10]} 5. Nc3 {[%emt 0:04:47]} d6 {[%emt 0:00:24]} 6. Bb3 {[%emt 0:12:10]} Na5 {[%emt 0:11:11]} 7. d4 {[%emt 0:01:15]} Nxb3 {[%emt 0:00:16]} 8. axb3 {[%emt 0:00:08]} f6 {[%emt 0:08:18]} 9. h3 {[%emt 0:04:28]} Ng6 {[%emt 0:03:59]} 10. Qd3 {[%emt 0:04:08]} Be6 {[%emt 0:07:27]} 11. d5 {[%emt 0:04:55]} Bd7 {[%emt 0:05:55]} 12. Ne2 {[%emt 0:00:04]} Be7 {[%emt 0:06:25]} 13. c4 {[%emt 0:07:36]} O-O {[%emt 0:04:43]} 14. g4 {[%emt 0:01:39]} c6 {[%emt 0:00:18]} 15. Ng3 {[%emt 0:02:18]} cxd5 {[%emt 0:03:58]} 16. Qxd5+ {[%emt 0:02:24]} Kh8 {[%emt 0:01:35]} 17. Nf5 {[%emt 0:02:22]} Bc6 {[%emt 0:05:45]} 18. Qd3 {[%emt 0:00:05]} Re8 {[%emt 0:10:49]} 19. Kf1 {[%emt 0:04:18]} Nf8 {[%emt 0:02:59]} 20. h4 {[%emt 0:04:17]} Ne6 {[%emt 0:00:10]} 21. Be3 {[%emt 0:00:17]} Bf8 {[%emt 0:03:55]} 22. h5 {[%emt 0:03:19]} Kg8 {[%emt 0:00:25]} 23. N3h4 {[%emt 0:03:10]} Nc5 {[%emt 0:04:11]} 24. Bxc5 {[%emt 0:00:13]} dxc5 {[%emt 0:00:05]} 25. Qe3 {[%emt 0:02:32]} h6 {[%emt 0:02:34]} 26. Kg2 {[%emt 0:06:22]} Qd7 {[%emt 0:00:55]} 27. Rhd1 {[%emt 0:01:48]} Qf7 {[%emt 0:00:20]} 28. Rd5 {[%emt 0:09:39]} b5 {[%emt 0:02:48]} 29. Ng6 {[%emt 0:03:23]} a5 {[%emt 0:07:41]} 30. Rad1 {[%emt 0:02:56]} Bxd5 {[%emt 0:01:21]} 31. exd5 {[%emt 0:01:54]} a4 {[%emt 0:00:53]} 32. cxb5 {[%emt 0:06:35]} axb3 {[%emt 0:00:18]} 33. Qxb3 {[%emt 0:00:04]} Rab8 {[%emt 0:04:19]} 34. Kg1 {[%emt 0:02:03]} Rb6 {[%emt 0:01:12]} 35. Qc4 {[%emt 0:00:46]} Kh7 {[%emt 0:01:30]} 36. Qe4 {[%emt 0:01:16]} Kg8 {[%emt 0:00:01]} 37. Qc4 {[%emt 0:00:52]} Kh7 {[%emt 0:00:07]} 38. Qe4 {[%emt 0:00:38]} Kg8 {[%emt 0:00:06]} 39. Qc4 {[%emt 0:00:34]} 1/2-1/2

[Event "European Womens-ch 2025"]
[Site "Rhodes"]
[Date "2025.04.11"]
[Round "11.18"]
[White "Yao, Lan"]
[Black "Guichard, Pauline"]
[Result "1-0"]
[Annotator "ChessBase"]
[ECO "B18"]
[WhiteElo "2294"]
[BlackElo "2355"]
[PlyCount "95"]
[EventDate "2025.03.29"]
[EventType "swiss"]
[EventCountry "GRE"]
[SourceTitle "playchess.com"]
[Source "ChessBase"]
[SourceQuality "1"]
[TimeControl "40/5400+30:1800+30"]

1. e4 {[%emt 0:01:19]} c6 {[%emt 0:00:03]} 2. d4 {[%emt 0:00:08]} d5 {[%emt 0:00:07]} 3. Nd2 {[%emt 0:00:06]} dxe4 {[%emt 0:00:10]} 4. Nxe4 {[%emt 0:00:04]} Bf5 {[%emt 0:00:08]} 5. Ng3 {[%emt 0:00:04]} Bg6 {[%emt 0:00:06]} 6. c3 {[%emt 0:00:05]} e6 {[%emt 0:08:25]} 7. N1e2 {[%emt 0:00:13]} Nf6 {[%emt 0:04:21]} 8. Nf4 {[%emt 0:00:51]} Bd6 {[%emt 0:00:21]} 9. h4 {[%emt 0:01:02]} Qc7 {[%emt 0:03:13]} 10. Qf3 {[%emt 0:00:21]} Nbd7 {[%emt 0:02:34]} 11. h5 {[%emt 0:00:44]} Bc2 {[%emt 0:02:44]} 12. h6 {[%emt 0:00:24]} g6 {[%emt 0:05:18]} 13. Bd3 {[%emt 0:01:35]} Bxd3 {[%emt 0:15:42]} 14. Nxd3 {[%emt 0:00:08]} e5 {[%emt 0:02:49]} 15. O-O {[%emt 0:10:15]} O-O {[%emt 0:04:45]} 16. dxe5 {[%emt 0:35:20]} Bxe5 {[%emt 0:00:17]} 17. Nxe5 {[%emt 0:02:45]} Qxe5 {[%emt 0:00:13]} 18. Rd1 {[%emt 0:01:03]} Qe6 {[%emt 0:04:46]} 19. Bg5 {[%emt 0:04:17]} Nd5 {[%emt 0:00:28]} 20. Re1 {[%emt 0:01:56]} Ne5 {[%emt 0:02:41]} 21. Qe4 {[%emt 0:06:40]} Rae8 {[%emt 0:05:15]} 22. Qd4 {[%emt 0:03:15]} f6 {[%emt 0:08:43]} 23. Bd2 {[%emt 0:00:20]} Qf7 {[%emt 0:02:59]} 24. Ne4 {[%emt 0:07:57]} Rd8 {[%emt 0:00:57]} 25. Qxa7 {[%emt 0:01:43]} Nd3 {[%emt 0:06:44]} 26. c4 {[%emt 0:02:57]} Nxe1 {[%emt 0:04:09]} 27. Rxe1 {[%emt 0:00:26]} Ra8 {[%emt 0:13:33]} 28. Qd4 {[%emt 0:00:32]} Nc7 {[%emt 0:00:15]} 29. Bc3 {[%emt 0:00:25]} Rae8 {[%emt 0:00:05]} 30. Re3 {[%emt 0:07:53]} c5 {[%emt 0:02:59]} 31. Qxf6 {[%emt 0:01:26]} Qxf6 {[%emt 0:00:33]} 32. Nxf6+ {[%emt 0:00:02]} Rxf6 {[%emt 0:00:33]} 33. Bxf6 {[%emt 0:00:01]} Rxe3 {[%emt 0:00:23]} 34. fxe3 {[%emt 0:11:13]} Kf7 35. Be5 {[%emt 0:00:00]} Ne8 {[%emt 0:00:36]} 36. Kf2 {[%emt 0:00:00]} Ke6 {[%emt 0:00:04]} 37. Bf4 {[%emt 0:00:00]} Kf5 {[%emt 0:00:58]} 38. Kf3 {[%emt 0:00:00]} g5 {[%emt 0:00:09]} 39. e4+ {[%emt 0:00:00]} Kg6 {[%emt 0:00:11]} 40. Bb8 {[%emt 0:00:00]} Kxh6 {[%emt 0:00:26]} 41. Ba7 {[%emt 0:00:00]} Kg6 {[%emt 0:01:24]} 42. Bxc5 {[%emt 0:00:00]} h5 {[%emt 0:00:45]} 43. a4 {[%emt 0:00:00]} Nc7 {[%emt 0:01:40]} 44. b4 {[%emt 0:00:00]} Ne6 {[%emt 0:00:31]} 45. Bd6 {[%emt 0:04:00]} Kf6 {[%emt 0:01:01]} 46. Ke3 {[%emt 0:00:29]} h4 {[%emt 0:02:37]} 47. a5 {[%emt 0:00:18]} g4 {[%emt 0:01:38]} 48. b5 {[%emt 0:00:14]} 1-0

[Event "European Womens-ch 2025"]
[Site "Rhodes"]
[Date "2025.04.11"]
[Round "11.19"]
[White "Khachatryan, Anna"]
[Black "Sliwicka, Alicja"]
[Result "1/2-1/2"]
[Annotator "ChessBase"]
[ECO "E04"]
[WhiteElo "2091"]
[BlackElo "2342"]
[PlyCount "213"]
[EventDate "2025.03.29"]
[EventType "swiss"]
[EventCountry "GRE"]
[SourceTitle "playchess.com"]
[Source "ChessBase"]
[SourceQuality "1"]
[TimeControl "40/5400+30:1800+30"]

1. d4 {[%emt 0:00:05]} Nf6 {[%emt 0:00:50]} 2. Nf3 {[%emt 0:01:17]} e6 {[%emt 0:00:29]} 3. c4 {[%emt 0:00:17]} d5 {[%emt 0:00:07]} 4. g3 {[%emt 0:00:29]} dxc4 {[%emt 0:01:09]} 5. Bg2 {[%emt 0:05:44]} Bb4+ {[%emt 0:00:09]} 6. Bd2 {[%emt 0:00:15]} a5 {[%emt 0:00:10]} 7. Qc2 {[%emt 0:00:27]} Bxd2+ {[%emt 0:00:23]} 8. Qxd2 {[%emt 0:00:32]} c6 {[%emt 0:09:04]} 9. a4 {[%emt 0:00:34]} b5 {[%emt 0:05:42]} 10. axb5 {[%emt 0:00:45]} cxb5 {[%emt 0:00:06]} 11. Qg5 {[%emt 0:00:06]} Nbd7 {[%emt 0:01:46]} 12. Qxb5 {[%emt 0:05:39]} Rb8 {[%emt 0:02:24]} 13. Qxc4 {[%emt 0:09:08]} Rxb2 {[%emt 0:00:48]} 14. O-O {[%emt 0:05:18]} O-O {[%emt 0:01:50]} 15. Nc3 {[%emt 0:06:16]} Bb7 {[%emt 0:03:20]} 16. Rfb1 {[%emt 0:08:28]} Rxb1+ {[%emt 0:00:58]} 17. Rxb1 {[%emt 0:02:12]} Qa8 {[%emt 0:01:18]} 18. Qc7 {[%emt 0:12:33]} Bc6 {[%emt 0:02:08]} 19. Ra1 {[%emt 0:04:12]} Rc8 {[%emt 0:01:16]} 20. Qd6 {[%emt 0:00:17]} Qa7 {[%emt 0:10:49]} 21. Na4 {[%emt 0:06:27]} Qb7 {[%emt 0:01:48]} 22. Ne1 {[%emt 0:05:48]} Bxg2 {[%emt 0:04:12]} 23. Nxg2 {[%emt 0:00:05]} Rc2 {[%emt 0:03:35]} 24. Nf4 {[%emt 0:07:37]} g5 {[%emt 0:04:26]} 25. Nd3 {[%emt 0:00:30]} Rxe2 {[%emt 0:02:20]} 26. Nac5 {[%emt 0:09:36]} Nxc5 {[%emt 0:01:47]} 27. dxc5 {[%emt 0:00:41]} Kg7 {[%emt 0:02:18]} 28. c6 {[%emt 0:07:00]} Qb6 {[%emt 0:01:10]} 29. Qc5 {[%emt 0:01:13]} Qxc5 {[%emt 0:01:24]} 30. Nxc5 {[%emt 0:00:01]} Rc2 {[%emt 0:04:18]} 31. Rxa5 {[%emt 0:00:01]} Nd5 {[%emt 0:00:33]} 32. h3 {[%emt 0:02:04]} h6 {[%emt 0:00:43]} 33. Kf1 {[%emt 0:00:37]} h5 {[%emt 0:06:06]} 34. Ke1 {[%emt 0:00:29]} g4 {[%emt 0:01:11]} 35. hxg4 {[%emt 0:00:03]} hxg4 {[%emt 0:00:04]} 36. Kd1 {[%emt 0:01:00]} Rc4 {[%emt 0:06:02]} 37. Kd2 {[%emt 0:00:26]} Rd4+ {[%emt 0:00:22]} 38. Ke2 {[%emt 0:00:44]} Kf6 {[%emt 0:06:12]} 39. Nd7+ {[%emt 0:00:28]} Ke7 {[%emt 0:01:08]} 40. Ra7 {[%emt 0:00:00]} Kd6 {[%emt 0:00:00]} 41. Nb8 {[%emt 0:01:38]} Nc7 {[%emt 0:06:13]} 42. Na6 {[%emt 0:11:53]} Nxa6 {[%emt 0:01:14]} 43. Rxa6 {[%emt 0:00:01]} Rc4 {[%emt 0:00:42]} 44. c7+ {[%emt 0:00:00]} Kd7 {[%emt 0:00:40]} 45. Ke3 {[%emt 0:00:25]} Rxc7 {[%emt 0:01:13]} 46. Ra3 {[%emt 0:00:03]} Rc4 {[%emt 0:01:18]} 47. Kd3 {[%emt 0:00:23]} Rb4 {[%emt 0:00:26]} 48. Ke3 {[%emt 0:00:09]} Ke7 {[%emt 0:00:21]} 49. Rc3 {[%emt 0:00:53]} Kf6 {[%emt 0:00:05]} 50. Ra3 {[%emt 0:00:31]} Kf5 {[%emt 0:00:57]} 51. Ke2 {[%emt 0:00:27]} Rb2+ {[%emt 0:00:37]} 52. Ke3 {[%emt 0:03:39]} e5 {[%emt 0:00:23]} 53. Ra5 {[%emt 0:00:16]} Rb3+ {[%emt 0:00:13]} 54. Ke2 {[%emt 0:00:04]} f6 {[%emt 0:00:41]} 55. Rc5 {[%emt 0:00:14]} Rb4 {[%emt 0:01:34]} 56. Rc6 {[%emt 0:01:29]} Re4+ {[%emt 0:00:39]} 57. Kd3 {[%emt 0:00:51]} Rd4+ {[%emt 0:00:20]} 58. Ke3 {[%emt 0:00:08]} Rd7 {[%emt 0:00:04]} 59. Ra6 {[%emt 0:00:28]} Re7 {[%emt 0:00:06]} 60. Ra5 {[%emt 0:00:54]} Rd7 {[%emt 0:01:51]} 61. Ra6 {[%emt 0:00:25]} Rd5 {[%emt 0:00:34]} 62. Rb6 {[%emt 0:01:21]} Kg5 {[%emt 0:01:07]} 63. Rb8 {[%emt 0:00:11]} Ra5 {[%emt 0:00:49]} 64. Rg8+ {[%emt 0:00:51]} Kf5 {[%emt 0:00:06]} 65. Rb8 {[%emt 0:00:15]} Ra3+ {[%emt 0:01:07]} 66. Ke2 {[%emt 0:00:05]} Ke6 {[%emt 0:01:11]} 67. Rb6+ {[%emt 0:00:10]} Kf7 {[%emt 0:00:24]} 68. Rb7+ {[%emt 0:01:02]} Kg6 {[%emt 0:00:05]} 69. Rb6 {[%emt 0:00:50]} Rf3 {[%emt 0:01:02]} 70. Ra6 {[%emt 0:08:04]} Rb3 {[%emt 0:00:28]} 71. Rc6 {[%emt 0:00:05]} Rb5 {[%emt 0:00:21]} 72. Ra6 {[%emt 0:00:19]} Kg5 {[%emt 0:00:24]} 73. Ra8 {[%emt 0:00:30]} f5 {[%emt 0:01:10]} 74. Rg8+ {[%emt 0:00:12]} Kf6 {[%emt 0:00:03]} 75. Rf8+ {[%emt 0:03:08]} Ke6 {[%emt 0:00:06]} 76. Ke3 {[%emt 0:00:13]} Rb3+ {[%emt 0:00:12]} 77. Ke2 {[%emt 0:00:00]} Rb7 {[%emt 0:00:19]} 78. Ke3 {[%emt 0:00:30]} Rf7 {[%emt 0:00:34]} 79. Re8+ {[%emt 0:00:04]} Kf6 {[%emt 0:00:49]} 80. Rg8 {[%emt 0:01:10]} Rg7 {[%emt 0:01:27]} 81. Rf8+ {[%emt 0:00:06]} Rf7 {[%emt 0:01:38]} 82. Rg8 {[%emt 0:00:05]} Ke7 {[%emt 0:00:21]} 83. Ra8 {[%emt 0:02:32]} Rf6 {[%emt 0:00:22]} 84. Ra5 {[%emt 0:00:33]} Re6 {[%emt 0:01:12]} 85. Ra8 {[%emt 0:00:23]} Kf7 {[%emt 0:00:31]} 86. Rb8 {[%emt 0:00:11]} Ra6 {[%emt 0:00:19]} 87. Rc8 {[%emt 0:00:50]} Ra3+ {[%emt 0:00:58]} 88. Ke2 {[%emt 0:00:01]} f4 {[%emt 0:00:46]} 89. gxf4 {[%emt 0:00:36]} exf4 {[%emt 0:00:05]} 90. Rc4 {[%emt 0:01:59]} Rf3 {[%emt 0:00:05]} 91. Rc6 {[%emt 0:00:07]} Kg7 {[%emt 0:02:22]} 92. Ra6 {[%emt 0:00:06]} Kh7 {[%emt 0:00:46]} 93. Rb6 {[%emt 0:00:06]} Ra3 {[%emt 0:04:25]} 94. Rb4 {[%emt 0:00:09]} Rf3 {[%emt 0:06:04]} 95. Rb6 {[%emt 0:00:01]} Kg7 {[%emt 0:02:15]} 96. Ra6 {[%emt 0:00:05]} Kf7 {[%emt 0:00:05]} 97. Rb6 {[%emt 0:00:04]} Rh3 {[%emt 0:02:22]} 98. Rb4 {[%emt 0:00:12]} Rf3 {[%emt 0:01:24]} 99. Rb6 {[%emt 0:00:04]} Ra3 {[%emt 0:00:22]} 100. Rb4 {[%emt 0:00:04]} f3+ {[%emt 0:00:07]} 101. Kd2 {[%emt 0:00:07]} Ra2+ {[%emt 0:00:31]} 102. Ke3 {[%emt 0:00:01]} Re2+ {[%emt 0:00:20]} 103. Kf4 {[%emt 0:00:01]} Rxf2 {[%emt 0:00:25]} 104. Kxg4 {[%emt 0:00:05]} Ke6 {[%emt 0:00:29]} 105. Rf4 {[%emt 0:00:13]} Rf1 {[%emt 0:00:05]} 106. Rxf3 {[%emt 0:00:04]} Rxf3 {[%emt 0:00:04]} 107. Kxf3 {[%emt 0:00:04]} 1/2-1/2

[Event "European Womens-ch 2025"]
[Site "Rhodes"]
[Date "2025.04.11"]
[Round "11.20"]
[White "Savina, Anastasia"]
[Black "Karacsonyi, Kata"]
[Result "1-0"]
[Annotator "ChessBase"]
[ECO "E92"]
[WhiteElo "2331"]
[BlackElo "2198"]
[PlyCount "105"]
[EventDate "2025.03.29"]
[EventType "swiss"]
[EventCountry "GRE"]
[SourceTitle "playchess.com"]
[Source "ChessBase"]
[SourceQuality "1"]
[TimeControl "40/5400+30:1800+30"]

1. d4 {[%emt 0:02:59]} Nf6 {[%emt 0:00:07]} 2. c4 {[%emt 0:00:10]} g6 {[%emt 0:00:07]} 3. Nc3 {[%emt 0:00:05]} Bg7 {[%emt 0:00:06]} 4. e4 {[%emt 0:00:05]} d6 {[%emt 0:00:05]} 5. Be2 {[%emt 0:00:04]} O-O {[%emt 0:00:14]} 6. Nf3 {[%emt 0:00:13]} e5 {[%emt 0:00:14]} 7. d5 {[%emt 0:00:27]} a5 {[%emt 0:00:30]} 8. Bg5 {[%emt 0:00:07]} h6 {[%emt 0:00:10]} 9. Be3 {[%emt 0:00:06]} Ng4 {[%emt 0:00:10]} 10. Bd2 {[%emt 0:00:05]} f5 {[%emt 0:00:23]} 11. h3 {[%emt 0:00:40]} Nf6 {[%emt 0:00:36]} 12. exf5 {[%emt 0:00:05]} gxf5 {[%emt 0:00:04]} 13. g4 {[%emt 0:00:39]} Ne4 {[%emt 0:20:32]} 14. g5 {[%emt 0:01:28]} Nxc3 {[%emt 0:22:07]} 15. Bxc3 {[%emt 0:01:39]} hxg5 {[%emt 0:02:47]} 16. Qd2 {[%emt 0:02:27]} f4 {[%emt 0:07:09]} 17. Rg1 {[%emt 0:13:03]} g4 {[%emt 0:00:36]} 18. hxg4 {[%emt 0:01:32]} Nd7 {[%emt 0:03:39]} 19. O-O-O {[%emt 0:35:18]} Nc5 {[%emt 0:04:29]} 20. Rh1 {[%emt 0:06:39]} Kf7 {[%emt 0:10:54]} 21. Qc2 {[%emt 0:06:03]} Rh8 {[%emt 0:07:46]} 22. Rxh8 {[%emt 0:02:45]} Qxh8 {[%emt 0:00:07]} 23. Ng5+ {[%emt 0:00:16]} Ke7 {[%emt 0:01:02]} 24. Bf3 {[%emt 0:15:00]} Qh6 {[%emt 0:01:45]} 25. Ne4 {[%emt 0:00:18]} Nxe4 {[%emt 0:01:56]} 26. Qxe4 {[%emt 0:02:03]} Kf7 {[%emt 0:00:15]} 27. Rh1 {[%emt 0:01:54]} Qg6 {[%emt 0:00:11]} 28. Qxg6+ {[%emt 0:02:26]} Kxg6 {[%emt 0:00:06]} 29. Be4+ {[%emt 0:00:02]} Kf6 {[%emt 0:01:54]} 30. f3 {[%emt 0:03:25]} Bd7 {[%emt 0:00:43]} 31. Be1 {[%emt 0:01:46]} b6 {[%emt 0:04:46]} 32. Rh7 {[%emt 0:01:44]} Kf7 {[%emt 0:02:36]} 33. Bh4 {[%emt 0:00:14]} Rf8 {[%emt 0:02:18]} 34. Bg5 {[%emt 0:00:44]} Kg8 {[%emt 0:01:12]} 35. Kd2 {[%emt 0:00:46]} Bc8 {[%emt 0:02:28]} 36. Kd3 {[%emt 0:00:41]} Bd7 {[%emt 0:00:46]} 37. b3 {[%emt 0:00:16]} Bc8 {[%emt 0:00:16]} 38. Rh2 {[%emt 0:00:23]} Kf7 {[%emt 0:00:52]} 39. Rh7 {[%emt 0:00:21]} Kg8 {[%emt 0:00:55]} 40. Rh2 {[%emt 0:00:00]} Kf7 {[%emt 0:00:00]} 41. a3 {[%emt 0:12:26]} Bd7 {[%emt 0:05:53]} 42. Rh1 {[%emt 0:09:37]} Kg8 {[%emt 0:08:00]} 43. Rh5 {[%emt 0:03:09]} Kf7 {[%emt 0:08:34]} 44. Bh4 {[%emt 0:02:55]} Kg8 {[%emt 0:02:47]} 45. Bh7+ {[%emt 0:01:11]} Kf7 {[%emt 0:00:07]} 46. Bf5 {[%emt 0:00:35]} Bc8 {[%emt 0:06:34]} 47. Ke4 {[%emt 0:00:24]} Rg8 {[%emt 0:00:22]} 48. Rh7 {[%emt 0:00:51]} Bxf5+ {[%emt 0:02:53]} 49. gxf5 {[%emt 0:01:41]} Kf8 {[%emt 0:02:16]} 50. f6 {[%emt 0:00:11]} Bh8 {[%emt 0:00:37]} 51. Rxc7 {[%emt 0:00:18]} Bxf6 {[%emt 0:00:31]} 52. Bxf6 {[%emt 0:00:14]} Rg3 {[%emt 0:00:25]} 53. Be7+ {[%emt 0:00:39]} 1-0